bitfinex/quotes_SOLUSD_20240726
["timestamp","ask_amount","ask_price","bid_price","bid_amount"]
[1722034945056,12.84,183.64,183.56,16.5633]
[1722034945257,12.84,183.64,183.57,13.92930964]
[1722034945570,12.84,183.65,183.58,12.84]
[1722034946353,45.0,183.64,183.58,12.84]
[1722034947565,45.0,183.65,183.58,12.84]
[1722034947858,57.84,183.65,183.58,12.84]
[1722034950761,45.0,183.65,183.59,12.84]
[1722034951264,57.84,183.65,183.58,12.84]
[1722034951442,57.84,183.65,183.56,16.5633]
[1722034951641,57.84,183.65,183.58,12.84]
[1722034952164,57.84,183.65,183.57,12.84]
[1722034954962,57.84,183.65,183.58,12.84]
[1722034956568,57.84,183.65,183.59,12.84]
[1722034957575,57.84,183.65,183.58,12.84]
[1722034957952,73.233,183.65,183.57,12.84]
[1722034958275,12.84,183.64,183.57,12.84]
[1722034958453,45.0,183.63,183.57,12.84]
[1722034958769,73.233,183.65,183.57,12.84]
[1722034959075,73.233,183.65,183.58,12.84]
[1722034964482,73.233,183.65,183.54,6.1955]
[1722034964769,73.233,183.65,183.58,12.84]
[1722034968682,81.77786984,183.65,183.58,12.84]
[1722034972888,12.84,183.61,183.52,16.76017587]
[1722034973179,12.84,183.59,183.52,12.84]
[1722034973483,80.05161614,183.65,183.54,12.84]
[1722034973686,12.84,183.61,183.54,12.84]
[1722034973859,45.0,183.6,183.54,12.84]
[1722034974659,45.0,183.6,183.49,6.4276]
[1722034974861,45.0,183.6,183.54,12.84]
[1722034975056,57.84,183.6,183.53,12.84]
[1722034976065,57.84,183.6,183.52,12.84]
[1722034976267,12.84,183.59,183.52,12.84]
[1722034976595,45.0,183.58,183.53,12.84]
[1722034976890,57.84,183.6,183.53,12.84]
[1722034977090,45.0,183.6,183.54,12.84]
[1722034980478,45.0,183.6,183.55,12.84]
[1722034980688,45.0,183.6,183.57,12.84]
[1722034980868,20.0,183.64,183.58,12.84]
[1722034981065,29.60621614,183.65,183.6,12.84]
[1722034981066,23.93786984,183.65,183.6,12.84]
[1722034981475,23.93786984,183.65,183.59,12.84]
[1722034983273,45.0,183.64,183.59,12.84]
[1722034985082,45.0,183.64,183.58,12.84]
[1722034985806,45.0,183.64,183.51,1.08937444]
[1722034985987,45.0,183.64,183.58,12.84]
[1722034986178,57.84,183.64,183.57,12.84]
[1722034987103,57.84,183.64,183.51,52.449483]
[1722034987104,12.84,183.62,183.55,12.84]
[1722034987307,45.0,183.61,183.55,12.84]
[1722034987511,57.84,183.61,183.54,12.84]
[1722034988095,45.0,183.61,183.55,12.84]
[1722034988408,12.84,183.64,183.57,12.84]
[1722034988701,23.93786984,183.65,183.51,51.36]
[1722034988702,77.84,183.63,183.56,12.84]
[1722034988908,12.84,183.62,183.55,12.84]
[1722034989108,45.0,183.61,183.55,12.84]
[1722034989308,45.0,183.61,183.56,12.84]
[1722034989489,45.0,183.62,183.56,12.84]
[1722034991003,45.0,183.62,183.57,12.84]
[1722034991304,57.84,183.62,183.54,12.84]
[1722034991606,12.84,183.61,183.54,12.84]
[1722034991784,45.0,183.6,183.54,12.84]
[1722034994198,45.0,183.61,183.54,12.84]
[1722034999619,57.84,183.61,183.54,12.84]
[1722034999919,45.0,183.61,183.54,12.84]
[1722035000123,57.84,183.61,183.54,12.84]
[1722035003217,12.84,183.57,183.48,15.6708]
[1722035003430,45.0,183.56,183.5,12.84]
[1722035003717,45.0,183.56,183.51,12.84]
[1722035003915,15.9329,183.59,183.54,12.84]
[1722035004094,45.0,183.58,183.54,12.84]
[1722035005101,45.0,183.58,183.53,12.84]
[1722035009722,45.0,183.58,183.52,12.84]
[1722035009924,45.0,183.58,183.48,15.6708]
[1722035010114,45.0,183.58,183.52,12.84]
[1722035010313,45.0,183.58,183.51,12.84]
[1722035012637,45.0,183.58,183.52,12.84]
[1722035013329,12.84,183.57,183.5,12.84]
[1722035013532,12.84,183.55,183.43,2.20237335]
[1722035013710,12.84,183.55,183.46,12.84]
[1722035013711,12.84,183.53,183.46,12.84]
[1722035013905,45.0,183.52,183.46,12.84]
[1722035014118,45.0,183.52,183.41,16.6032]
[1722035014320,45.0,183.52,183.46,12.84]
[1722035015026,45.0,183.52,183.47,12.84]
[1722035015634,5.66835056,183.58,183.5,12.84]
[1722035015923,77.84,183.57,183.5,12.84]
[1722035016112,77.84,183.57,183.43,1.08991036]
[1722035016113,65.0,183.57,183.51,12.84]
[1722035016301,20.0,183.57,183.52,12.84]
[1722035016508,20.0,183.58,183.52,12.84]
[1722035016703,15.9329,183.59,183.52,12.84]
[1722035016944,5.66714316,183.61,183.58,12.84]
[1722035017261,14.59116984,183.65,183.59,12.84]
[1722035017439,14.59116984,183.65,183.6,12.84]
[1722035018141,8.54486984,183.65,183.6,12.84]
[1722035018321,8.54486984,183.65,183.61,12.84]
[1722035020437,8.54486984,183.65,183.6,12.84]
[1722035020652,8.54486984,183.65,183.59,12.84]
[1722035021833,45.0,183.64,183.58,12.84]
[1722035024427,57.84,183.64,183.57,12.84]
[1722035025035,12.84,183.62,183.47,1.08948991]
[1722035025250,12.84,183.6,183.53,12.84]
[1722035025445,12.84,183.59,183.52,12.84]
[1722035025749,12.84,183.59,183.49,17.40878454]
[1722035025750,45.0,183.58,183.49,17.40878454]
[1722035025952,45.0,183.58,183.52,12.84]
[1722035027248,45.0,183.58,183.53,12.84]
[1722035027437,45.0,183.58,183.54,12.84]
[1722035027634,45.0,183.59,183.54,12.84]
[1722035028733,45.0,183.59,183.53,12.84]
[1722035032258,45.0,183.59,183.54,12.84]
[1722035032461,57.84,183.59,183.49,16.319]
[1722035032648,45.0,183.59,183.53,12.84]
[1722035035753,45.0,183.59,183.49,17.40865178]
[1722035035956,45.0,183.59,183.54,12.84]
[1722035036459,45.0,183.6,183.54,12.84]
[1722035036662,45.0,183.6,183.55,12.84]
[1722035039257,45.0,183.6,183.54,12.84]
[1722035040661,45.0,183.6,183.53,12.84]
[1722035040869,50.4466,183.6,183.53,12.84]
[1722035041241,63.2866,183.6,183.53,12.84]
[1722035041460,57.84,183.6,183.53,12.84]
[1722035044971,45.0,183.6,183.53,12.84]
[1722035045142,45.0,183.6,183.54,12.84]
[1722035045561,57.84,183.6,183.53,12.84]
[1722035045958,45.0,183.6,183.55,12.84]
[1722035049547,45.0,183.6,183.54,12.84]
[1722035050579,57.84,183.6,183.53,12.84]
[1722035052649,45.0,183.6,183.54,12.84]
[1722035056178,57.84,183.6,183.53,12.84]
[1722035057574,63.2868,183.6,183.53,12.84]
[1722035058276,12.84,183.59,183.52,12.84]
[1722035058453,45.0,183.58,183.52,12.84]
[1722035061471,45.0,183.58,183.45,16.544]
[1722035061472,57.84,183.58,183.45,16.544]
[1722035061774,12.84,183.56,183.48,12.84]
[1722035062076,57.84,183.55,183.48,12.84]
[1722035062249,12.84,183.55,183.48,12.84]
[1722035062452,45.0,183.54,183.48,12.84]
[1722035063052,45.0,183.54,183.49,12.84]
[1722035063454,5.447,183.59,183.52,12.84]
[1722035063455,12.84,183.59,183.52,12.84]
[1722035063660,65.0,183.58,183.53,12.84]
[1722035063860,45.0,183.57,183.53,12.84]
[1722035065169,45.0,183.57,183.52,12.84]
[1722035067058,45.0,183.57,183.51,12.84]
[1722035067265,45.0,183.57,183.5,12.84]
[1722035067465,12.84,183.56,183.49,12.84]
[1722035067661,45.0,183.55,183.49,12.84]
[1722035067883,45.0,183.55,183.5,12.84]
[1722035068068,12.84,183.56,183.5,12.84]
[1722035068386,12.84,183.57,183.5,12.84]
[1722035068593,45.0,183.56,183.5,12.84]
[1722035069592,12.84,183.54,183.45,16.544]
[1722035069794,45.0,183.53,183.47,12.84]
[1722035071988,45.0,183.53,183.48,12.84]
[1722035073265,45.0,183.53,183.45,16.544]
[1722035073467,45.0,183.53,183.48,12.84]
[1722035074179,45.0,183.53,183.47,12.84]
[1722035075075,45.0,183.53,183.48,12.84]
[1722035076077,45.0,183.53,183.47,12.84]
[1722035076602,45.0,183.53,183.48,12.84]
[1722035077498,45.0,183.54,183.49,12.84]
[1722035077700,12.84,183.57,183.51,12.84]
[1722035078002,20.0,183.56,183.51,12.84]
[1722035078595,20.0,183.57,183.51,12.84]
[1722035079212,45.0,183.56,183.51,12.84]
[1722035080802,45.0,183.56,183.43,1.09006603]
[1722035081014,57.84,183.56,183.43,46.09006603]
[1722035081217,12.84,183.55,183.42,1.08993847]
[1722035081402,45.0,183.54,183.48,12.84]
[1722035081894,45.0,183.54,183.49,12.84]
[1722035082098,45.0,183.55,183.49,12.84]
[1722035084827,45.0,183.55,183.5,12.84]
[1722035085027,45.0,183.56,183.5,12.84]
[1722035085503,12.84,183.55,183.48,12.84]
[1722035085703,45.0,183.54,183.48,12.84]
[1722035091299,45.0,183.54,183.41,18.74488893]
[1722035091300,12.84,183.51,183.41,16.544]
[1722035091503,45.0,183.5,183.44,12.84]
[1722035091705,57.84,183.5,183.36,6.38934405]
[1722035091904,57.84,183.5,183.43,12.84]
[1722035092817,57.84,183.5,183.36,1.0902236]
[1722035093017,12.84,183.48,183.36,47.2470873]
[1722035093318,12.84,183.49,183.42,12.84]
[1722035093520,45.0,183.48,183.42,12.84]
[1722035093941,57.84,183.48,183.35,16.6028]
[1722035094130,57.84,183.48,183.41,12.84]
[1722035098931,16.532,183.47,183.41,12.84]
[1722035099253,45.0,183.46,183.4,12.84]
[1722035099547,45.0,183.46,183.39,12.84]
[1722035099548,64.4111,183.46,183.39,12.84]
[1722035099726,12.84,183.45,183.38,12.84]
[1722035099931,57.84,183.44,183.31,17.69780908]
[1722035100123,51.5711,183.46,183.36,12.84]
[1722035100124,12.84,183.43,183.36,12.84]
[1722035100344,45.0,183.42,183.37,12.84]
[1722035100549,45.0,183.42,183.38,12.84]
[1722035100859,45.0,183.43,183.38,12.84]
[1722035101652,45.0,183.44,183.38,12.84]
[1722035101860,45.0,183.44,183.39,12.84]
[1722035102033,45.0,183.45,183.4,12.84]
[1722035102234,45.0,183.45,183.42,12.84]
[1722035102441,16.532,183.47,183.44,12.84]
[1722035102745,6.5711,183.5,183.45,12.84]
[1722035103228,6.5711,183.5,183.44,12.84]
[1722035104040,20.0,183.49,183.44,12.84]
[1722035104751,20.0,183.49,183.43,12.84]
[1722035105060,45.0,183.48,183.43,12.84]
[1722035105249,45.0,183.48,183.42,12.84]
[1722035108748,57.84,183.48,183.37,15.4632]
[1722035109061,12.84,183.46,183.39,12.84]
[1722035109473,12.84,183.45,183.38,12.84]
[1722035109775,12.84,183.46,183.39,12.84]
[1722035109955,45.0,183.48,183.42,12.84]
[1722035110666,57.84,183.48,183.41,12.84]
[1722035111359,12.84,183.46,183.35,6.0966]
[1722035111561,45.0,183.45,183.39,12.84]
[1722035112572,57.84,183.45,183.38,12.84]
[1722035115883,73.6973,183.45,183.38,12.84]
[1722035116679,12.84,183.44,183.37,12.84]
[1722035116884,45.0,183.43,183.37,12.84]
[1722035118480,57.84,183.43,183.36,12.84]
[1722035120185,57.84,183.43,183.33,15.4632]
[1722035120359,12.84,183.42,183.35,12.84]
[1722035120563,45.0,183.41,183.36,12.84]
[1722035123576,45.0,183.42,183.36,12.84]
[1722035127206,57.84,183.42,183.35,12.84]
[1722035127421,12.84,183.4,183.3,6.6581]
[1722035127718,73.6973,183.39,183.29,16.5189]
[1722035127888,73.6973,183.39,183.32,12.84]
[1722035128084,12.84,183.38,183.32,12.84]
[1722035128388,45.0,183.37,183.31,12.84]
[1722035129191,45.0,183.37,183.25,17.60984856]
[1722035129407,57.84,183.37,183.3,12.84]
[1722035130315,12.84,183.36,183.29,12.84]
[1722035130687,45.0,183.35,183.29,12.84]
[1722035131410,57.84,183.35,183.21,6.69393588]
[1722035131618,12.84,183.34,183.28,12.84]
[1722035131793,45.0,183.33,183.28,12.84]
[1722035134922,45.0,183.33,183.24,51.36]
[1722035135320,12.84,183.32,183.21,3.03321409]
[1722035135602,45.0,183.31,183.24,12.84]
[1722035135817,57.84,183.31,183.24,12.84]
[1722035136002,63.2952,183.31,183.24,12.84]
[1722035136202,57.84,183.31,183.24,12.84]
[1722035137716,45.0,183.31,183.25,12.84]
[1722035138224,45.0,183.31,183.27,12.84]
[1722035138530,15.7097,183.33,183.27,12.84]
[1722035138826,20.0,183.32,183.26,12.84]
[1722035139210,32.84,183.32,183.25,12.84]
[1722035139700,20.0,183.32,183.27,12.84]
[1722035139895,45.0,183.31,183.27,12.84]
[1722035140599,15.7097,183.33,183.3,12.84]
[1722035140801,15.7097,183.37,183.32,12.84]
[1722035141018,15.7097,183.41,183.32,12.84]
[1722035141199,6.4395,183.43,183.38,12.84]
[1722035141997,5.63982829,183.45,183.41,12.84]
[1722035142304,5.63982829,183.45,183.42,12.84]
[1722035143637,11.8897,183.48,183.42,12.84]
[1722035143807,5.4506,183.47,183.42,12.84]
[1722035144017,12.84,183.47,183.36,1.09050791]
[1722035144205,5.451,183.46,183.4,12.84]
[1722035144729,5.4511,183.45,183.4,12.84]
[1722035144898,12.84,183.47,183.4,12.84]
[1722035145249,18.2908,183.46,183.39,12.84]
[1722035145417,63.2908,183.46,183.39,12.84]
[1722035146037,20.0,183.45,183.39,12.84]
[1722035146218,45.0,183.44,183.38,12.84]
[1722035146526,57.84,183.44,183.37,12.84]
[1722035148115,63.2913,183.44,183.37,12.84]
[1722035148317,20.0,183.43,183.37,12.84]
[1722035148517,45.0,183.42,183.37,12.84]
[1722035149017,63.292,183.42,183.35,12.84]
[1722035149242,57.84,183.42,183.35,12.84]
[1722035149618,45.0,183.42,183.37,12.84]
[1722035149851,45.0,183.42,183.38,12.84]
[1722035150544,45.0,183.42,183.37,12.84]
[1722035151126,45.0,183.42,183.38,12.84]
[1722035151338,45.0,183.42,183.37,12.84]
[1722035151511,50.452,183.42,183.36,12.84]
[1722035152219,63.292,183.42,183.35,12.84]
[1722035153532,50.452,183.42,183.36,12.84]
[1722035154247,5.4522,183.41,183.35,12.84]
[1722035154429,45.0,183.4,183.35,12.84]
[1722035154636,63.292,183.42,183.35,12.84]
[1722035155441,5.4523,183.41,183.35,12.84]
[1722035155636,70.4526,183.4,183.35,12.84]
[1722035156018,65.0,183.4,183.35,12.84]
[1722035156219,83.2926,183.4,183.26,16.2749]
[1722035156416,12.84,183.39,183.33,12.84]
[1722035156738,65.0,183.38,183.32,12.84]
[1722035157441,77.84,183.38,183.32,12.84]
[1722035158137,83.2932,183.38,183.31,12.84]
[1722035159741,77.84,183.38,183.31,12.84]
[1722035160045,65.0,183.38,183.33,12.84]
[1722035160219,70.4531,183.38,183.33,12.84]
[1722035160540,70.4531,183.38,183.32,12.84]
[1722035160748,65.0,183.38,183.32,12.84]
[1722035162928,77.84,183.38,183.26,16.2749]
[1722035163127,77.84,183.38,183.31,12.84]
[1722035163433,5.4535,183.37,183.32,12.84]
[1722035163638,45.0,183.36,183.32,12.84]
[1722035164541,45.0,183.36,183.33,12.84]
[1722035164858,45.0,183.37,183.34,12.84]
[1722035165057,20.0,183.38,183.35,12.84]
[1722035165231,20.0,183.38,183.27,1.09116682]
[1722035165232,22.0225,183.42,183.36,12.84]
[1722035165434,16.5705,183.42,183.36,12.84]
[1722035165732,16.5705,183.42,183.37,12.84]
[1722035166655,22.0226,183.42,183.37,12.84]
[1722035167145,22.0226,183.42,183.27,1.09116682]
[1722035167345,45.0,183.41,183.36,12.84]
[1722035168148,14.00842436,183.44,183.38,12.84]
[1722035168358,20.0,183.43,183.38,12.84]
[1722035169251,20.0,183.43,183.37,12.84]
[1722035169925,45.0,183.42,183.37,12.84]
[1722035170351,45.0,183.42,183.33,12.84]
[1722035170352,45.0,183.42,183.38,12.84]
[1722035172756,45.0,183.42,183.27,46.09116682]
[1722035173050,45.0,183.42,183.36,12.84]
[1722035173651,57.84,183.42,183.36,12.84]
[1722035174052,5.4523,183.41,183.36,12.84]
[1722035174254,45.0,183.4,183.35,12.84]
[1722035174737,45.0,183.41,183.35,12.84]
[1722035174939,18.2925,183.4,183.33,12.84]
[1722035175138,45.0,183.39,183.33,12.84]
[1722035175455,45.0,183.39,183.34,12.84]
[1722035175947,45.0,183.4,183.36,12.84]
[1722035176128,45.0,183.41,183.36,12.84]
[1722035176326,20.0,183.4,183.36,12.84]
[1722035176532,45.0,183.41,183.36,12.84]
[1722035176830,20.0,183.4,183.36,12.84]
[1722035179452,20.0,183.4,183.37,12.84]
[1722035182858,25.4526,183.4,183.37,12.84]
[1722035183047,5.4529,183.39,183.34,12.84]
[1722035183266,5.4531,183.38,183.33,12.84]
[1722035183751,5.4529,183.39,183.33,12.84]
[1722035184155,5.4531,183.38,183.33,12.84]
[1722035184959,5.4529,183.39,183.33,12.84]
[1722035185159,45.0,183.38,183.33,12.84]
[1722035187181,45.0,183.39,183.33,12.84]
[1722035188065,45.0,183.39,183.35,12.84]
[1722035188579,20.0,183.4,183.35,12.84]
[1722035188746,45.0,183.39,183.35,12.84]
[1722035190052,45.0,183.39,183.36,12.84]
[1722035192078,5.4523,183.41,183.36,12.84]
[1722035192268,65.0,183.4,183.36,12.84]
[1722035193167,65.0,183.4,183.38,12.84]
[1722035193168,20.0,183.4,183.38,12.84]
[1722035193347,8.55702436,183.44,183.38,12.84]
[1722035193555,8.55702436,183.44,183.42,12.84]
[1722035193765,18.9261,183.49,183.42,12.84]
[1722035194273,8.55559205,183.47,183.43,12.84]
[1722035194450,5.63168263,183.52,183.46,12.84]
[1722035194662,5.449,183.52,183.47,12.84]
[1722035195277,8.55325223,183.53,183.48,12.84]
[1722035195470,8.55325223,183.53,183.43,1.0901665]
[1722035195471,8.55325223,183.53,183.5,12.84]
[1722035195952,8.55325223,183.53,183.47,12.84]
[1722035196280,21.39325223,183.53,183.42,22.4917]
[1722035196575,5.4491,183.52,183.46,12.84]
[1722035196761,45.0,183.51,183.47,12.84]
[1722035197186,45.0,183.52,183.47,12.84]
[1722035200976,45.0,183.52,183.46,12.84]
[1722035201383,50.449,183.52,183.46,12.84]
[1722035201978,45.0,183.52,183.46,12.84]
[1722035203071,57.84,183.52,183.46,12.84]
[1722035204600,57.84,183.52,183.45,12.84]
[1722035204781,32.84,183.51,183.45,12.84]
[1722035204976,45.0,183.5,183.45,12.84]
[1722035205291,12.84,183.49,183.42,12.84]
[1722035205450,50.4496,183.5,183.41,12.84]
[1722035205451,45.0,183.48,183.41,12.84]
[1722035205651,12.84,183.47,183.4,12.84]
[1722035205964,45.0,183.46,183.4,12.84]
[1722035206356,32.84,183.45,183.38,12.84]
[1722035206678,45.0,183.44,183.38,12.84]
[1722035207684,57.84,183.44,183.34,16.2732]
[1722035207864,20.0,183.43,183.37,12.84]
[1722035208069,45.0,183.42,183.37,12.84]
[1722035208853,45.0,183.42,183.39,12.84]
[1722035209055,20.0,183.43,183.4,12.84]
[1722035209252,20.0,183.46,183.4,12.84]
[1722035209480,45.0,183.45,183.4,12.84]
[1722035209777,20.0,183.44,183.4,12.84]
[1722035210574,20.0,183.44,183.34,16.2732]
[1722035210575,20.0,183.44,183.39,12.84]
[1722035210881,45.0,183.43,183.39,12.84]
[1722035211883,45.0,183.43,183.4,12.84]
[1722035212980,35.0637,183.49,183.42,12.84]
[1722035213180,24.48525223,183.53,183.45,12.84]
[1722035213485,12.84,183.52,183.45,12.84]
[1722035213661,18.2892,183.52,183.46,12.84]
[1722035214058,5.4492,183.52,183.42,29.1132]
[1722035214266,29.93395223,183.53,183.47,12.84]
[1722035214469,5.70038179,183.54,183.49,12.84]
[1722035214685,5.448,183.56,183.5,12.84]
[1722035214878,8.55181706,183.55,183.5,12.84]
[1722035215388,13.99991706,183.55,183.49,12.84]
[1722035215584,5.4484,183.54,183.48,12.84]
[1722035215770,25.4487,183.53,183.48,12.84]
[1722035215974,25.4487,183.53,183.47,12.84]
[1722035216178,45.0,183.52,183.47,12.84]
[1722035216491,45.0,183.52,183.42,16.2732]
[1722035216668,45.0,183.52,183.47,12.84]
[1722035216868,45.0,183.52,183.48,12.84]
[1722035219092,45.0,183.52,183.49,12.84]
[1722035219278,20.0,183.53,183.49,12.84]
[1722035219474,20.0,183.54,183.49,12.84]
[1722035219687,20.0,183.54,183.5,12.84]
[1722035220291,20.0,183.54,183.49,12.84]
[1722035220989,45.0,183.53,183.49,12.84]
[1722035222168,45.0,183.53,183.48,12.84]
[1722035222494,50.4487,183.53,183.47,12.84]
[1722035222683,45.0,183.53,183.47,12.84]
[1722035223195,45.0,183.53,183.48,12.84]
[1722035223575,45.0,183.53,183.49,12.84]
[1722035225175,45.0,183.53,183.5,12.84]
[1722035225574,45.0,183.53,183.49,12.84]
[1722035226174,45.0,183.53,183.48,12.84]
[1722035227898,45.0,183.53,183.47,12.84]
[1722035228096,50.4487,183.53,183.47,12.84]
[1722035228405,45.0,183.53,183.47,12.84]
[1722035229093,50.4487,183.53,183.47,12.84]
[1722035229300,50.4487,183.53,183.46,12.84]
[1722035229301,20.0,183.52,183.46,12.84]
[1722035229488,45.0,183.51,183.47,12.84]
[1722035231571,45.0,183.51,183.42,16.2732]
[1722035231772,20.0,183.5,183.45,12.84]
[1722035231997,45.0,183.49,183.45,12.84]
[1722035232386,45.0,183.49,183.38,15.9092]
[1722035232387,45.0,183.49,183.39,1.0902427]
[1722035232599,45.0,183.49,183.38,15.9092]
[1722035232600,45.0,183.49,183.44,12.84]
[1722035234088,45.0,183.49,183.43,12.84]
[1722035235193,45.0,183.49,183.44,12.84]
[1722035237112,50.4499,183.49,183.38,15.9092]
[1722035237406,45.0,183.49,183.43,12.84]
[1722035238509,45.0,183.49,183.38,15.9092]
[1722035238711,45.0,183.49,183.43,12.84]
[1722035238913,20.0,183.48,183.42,12.84]
[1722035239205,57.84,183.47,183.4,12.84]
[1722035239412,20.0,183.46,183.4,12.84]
[1722035239584,45.0,183.45,183.4,12.84]
[1722035240206,12.84,183.44,183.34,16.5483]
[1722035240384,45.0,183.43,183.37,12.84]
[1722035241683,45.0,183.43,183.39,12.84]
[1722035242138,45.0,183.43,183.34,16.5483]
[1722035242402,45.0,183.43,183.39,12.84]
[1722035248218,45.0,183.43,183.38,12.84]
[1722035252226,45.0,183.43,183.39,12.84]
[1722035252795,20.0,183.44,183.42,12.84]
[1722035253092,18.2898,183.5,183.43,12.84]
[1722035253628,12.84,183.5,183.43,12.84]
[1722035254000,18.2895,183.5,183.43,12.84]
[1722035254201,18.29,183.49,183.42,12.84]
[1722035254646,12.84,183.49,183.42,12.84]
[1722035255209,20.0,183.48,183.42,12.84]
[1722035255925,45.0,183.47,183.42,12.84]
[1722035256822,45.0,183.47,183.41,12.84]
[1722035259508,12.84,183.46,183.4,12.84]
[1722035259827,45.0,183.45,183.4,12.84]
[1722035260606,57.84,183.45,183.38,12.84]
[1722035262223,20.0,183.44,183.38,12.84]
[1722035262429,45.0,183.43,183.38,12.84]
[1722035276343,18.292,183.42,183.35,12.84]
[1722035276557,45.0,183.41,183.35,12.84]
[1722035277344,57.84,183.41,183.34,12.84]
[1722035280045,63.2923,183.41,183.34,12.84]
[1722035280245,32.84,183.4,183.33,12.84]
[1722035280548,45.0,183.39,183.33,12.84]
[1722035280721,45.0,183.39,183.27,6.1388]
[1722035280722,20.0,183.38,183.27,6.1388]
[1722035280925,57.84,183.37,183.3,12.84]
[1722035281233,20.0,183.36,183.3,12.84]
[1722035281438,45.0,183.35,183.3,12.84]
[1722035281820,45.0,183.35,183.31,12.84]
[1722035282032,20.0,183.36,183.33,12.84]
[1722035282349,20.0,183.37,183.35,12.84]
[1722035282530,21.8027,183.42,183.35,12.84]
[1722035282734,65.0,183.41,183.37,12.84]
[1722035283048,65.0,183.41,183.36,12.84]
[1722035283417,77.84,183.41,183.27,1.09100057]
[1722035283750,12.84,183.4,183.33,12.84]
[1722035284046,65.0,183.39,183.33,12.84]
[1722035284252,77.84,183.39,183.33,12.84]
[1722035284428,65.0,183.39,183.34,12.84]
[1722035285449,65.0,183.39,183.35,12.84]
[1722035288746,65.0,183.39,183.34,12.84]
[1722035291641,65.0,183.39,183.33,12.84]
[1722035291961,65.0,183.39,183.26,15.742]
[1722035291962,18.2936,183.37,183.26,15.742]
[1722035292257,77.84,183.36,183.29,12.84]
[1722035295157,65.0,183.36,183.3,12.84]
[1722035295534,45.0,183.36,183.3,12.84]
[1722035295735,45.0,183.36,183.31,12.84]
[1722035295942,45.0,183.37,183.31,12.84]
[1722035296366,20.0,183.36,183.31,12.84]